Cogmind - Beta 13 X1 @@@ ROGUE MODE // 2023.08.27 @ 20:56:12 Player: VR-DUX Result: Destroyed by G-34 Mercenary with Small Laser Performance ------------- Evolutions (0) 0 Regions Visited (2) 400 Robots Destroyed (20) 100 Value Destroyed (364) 364 Prototype IDs (2) 40 Alien Tech Used (0) 0 Bonus (-50) -50 TOTAL SCORE: 854 Bonus ------- Friendly Fire -50 Cogmind --------- Core Integrity 0/250 Matter 62/300 Energy 110/125 System Corruption 6% Temperature Warm (103) Movement Treading (160) Location -10/Mines Parts ------- > --- POWER (1) -------- Light Ion Engine > --- PROPULSION (2) --- Light Treads Light Treads > --- UTILITY (2) ------ Large Storage Unit Structural Scanner > --- WEAPON (2) ------- Beamcaster Shotgun > --- INVENTORY (15) --- Ion Engine Light Angular Momentum Engine Light Treads Aluminum Leg Aluminum Leg Small Storage Unit Medium Storage Unit Signal Interpreter Hacking Suite Medium Laser Peak State ------------ > --- POWER ------------ Light Ion Engine > --- PROPULSION ------- Light Treads Light Treads > --- UTILITY ---------- Large Storage Unit Structural Scanner > --- WEAPON ----------- Beamcaster Shotgun > --- INVENTORY -------- Ion Engine Light Angular Momentum Engine Light Treads Aluminum Leg Aluminum Leg Small Storage Unit Medium Storage Unit Signal Interpreter Hacking Suite Medium Laser [Rating: 13] Favorites ----------- Power Ion Engine Engine Ion Engine Propulsion Aluminum Leg Treads Light Treads Leg Aluminum Leg Wheel Compact Wheel Utility Large Storage Unit Device Structural Scanner Storage Large Storage Unit Weapon Grenade Launcher Energy Gun Small Laser Energy Cannon Light EM Pulse Cannon Ballistic Gun Assault Rifle Launcher Grenade Launcher Build | -11 -10 -10 ------- Run | Jun Mat Min Slots Evolved . | . . . Power . | . . . Propulsion . | . . . Utility . | . . . Weapon . | . . . Parts Attached 16 | . 6 10 Power 1 | . . 1 Engine 1 | . . 1 Core . | . . . Reactor . | . . . Propulsion 5 | . 1 4 Treads 3 | . . 3 Leg . | . . . Wheel 2 | . 1 1 Hover . | . . . Flight . | . . . Utility 3 | . 2 1 Device 2 | . 1 1 Storage 1 | . 1 . Processor . | . . . Hackware . | . . . Protection . | . . . Artifact . | . . . Weapon 7 | . 3 4 Energy Gun 2 | . . 2 Energy Cannon 1 | . 1 . Ballistic Gun 2 | . 1 1 Ballistic Cannon . | . . . Launcher 2 | . 1 1 Special Weapon . | . . . Impact Weapon . | . . . Slashing Weapon . | . . . Piercing Weapon . | . . . Special Melee Weapon . | . . . Unidentified Prototypes . | . . . Parts Lost 6 | . . 6 Power . | . . . Propulsion 2 | . . 2 Utility 1 | . . 1 Weapon 3 | . . 3 Highest Loss Streak 4 | . . 4 To Critical Strikes . | . . . Average Slot Usage (%) 90 | . 90 90 Engine 14 | . 14 14 Treads 3 | . . 8 Leg 12 | . 19 6 Wheel 9 | . 8 10 Device 8 | . 4 11 Storage 14 | . 14 14 Energy Gun 6 | . 10 2 Energy Cannon 6 | . 3 9 Ballistic Gun 6 | . 10 1 Launcher 7 | . 3 10 Naked Turns . | . . . Heaviest Build 33 | 13 33 33 Greatest Support 40 | 20 20 40 Greatest Overweight (x) 2 | . 2 2 Average Overweight (x) 1 | . 1 1 Largest Inventory Capacity 15 | . 15 15 Average Capacity 14 | . 14 15 Most Carried 15 | . 15 15 Average Carried 12 | . 11 13 Final Capacity 15 | 8 15 15 Final Carried 15 | 6 15 10 Class Distribution -------------------- 100% | Mutant Dominant Class ---------------- Mutant | -10/Materials Mutant | -10/Mines Resources | -11 -10 -10 ----------- Run | Jun Mat Min Matter Collected 391 | 200 102 89 Remotely . | . . . Salvage Created 384 | . 213 171 Parts 36 | . 20 16 Haulers Intercepted 2 | . 2 . Recyclers Shooed 1 | . 1 . Parts Field Recycled . | . . . Retrieved Matter . | . . . Parts Self-Destructed . | . . . Prevented . | . . . Kills | -11 -10 -10 ------- Run | Jun Mat Min Combat Hostiles Destroyed 16 | . 4 12 Guns 4 | . 2 2 AOE 12 | . 2 10 Classes Destroyed 7 | . 6 1 Builder 1 | . 1 . Hauler 2 | . 2 . Operator 2 | . 2 . Watcher 1 | . 1 . Swarmer 8 | . 2 6 Grunt 6 | . 2 4 Assembled 2 | . . 2 Best Kill Streak 5 | . 3 5 Combat Bots Only 5 | . 2 5 Max Kills in Single Turn 2 | . 2 2 Gunslinging . | . . . Exploded 2 | . 1 2 Melee . | . . . Uniques/NPCs Destroyed . | . . . Combat | -11 -10 -10 -------- Run | Jun Mat Min Damage Taken 1066 | . 153 913 Core 250 | . 35 215 Absorbed by Shields . | . . . Core Remaining (%) 100 | 100 . . Volleys Fired 66 | . 36 30 Largest 2 | . 2 2 Hottest 98 | . 86 98 Shots Fired 103 | . 70 33 Gun 83 | . 66 17 Cannon 1 | . 1 . Launcher 19 | . 3 16 Special . | . . . Kinetic 35 | . 33 2 Thermal 48 | . 33 15 Explosive 19 | . 3 16 Electromagnetic 1 | . 1 . Robot Hit Streak 7 | . 7 4 Robot Miss Streak 2 | . 2 2 Penetration Max . | . . . Secondary Targets 1 | . 1 . Max Gunslinging Chain 1 | . 1 . Shots Hit Robots 51 | . 33 18 Core Hits 36 | . 16 20 Critical Kills . | . . . Critical Parts Destroyed . | . . . Critical Strikes 2 | . . 2 Burn 2 | . . 2 Melee Attacks . | . . . Impact . | . . . Slashing . | . . . Piercing . | . . . Sneak Attacks . | . . . Combat Hostiles . | . . . Follow-up Attacks . | . . . Damage Inflicted 1460 | . 614 846 Guns 679 | . 413 266 Cannons . | . . . Explosions 781 | . 201 580 Melee . | . . . Ramming . | . . . Kinetic 257 | . 235 22 Thermal 422 | . 178 244 Explosive 781 | . 201 580 Electromagnetic . | . . . Impact . | . . . Slashing . | . . . Piercing . | . . . Highest Corruption 6 | . . 6 Average Corruption 5 | . . 5 Corruption Purged . | . . . Corruption Blocked . | . . . Effects 5 | . . 5 Heat Flow Errors 1 | . . 1 Parts Rejected 2 | . . 2 Data Loss (minor) 1 | . . 1 Misfires 1 | . . 1 Overload Shots . | . . . Overflow Damage 64 | . 40 24 Projectiles . | . . . Explosions 64 | . 40 24 Melee . | . . . Knockbacks . | . . . Impact . | . . . Kinetic . | . . . Secondary . | . . . Self-Inflicted Damage 173 | . . 173 Shots 6 | . . 6 Rammed . | . . . Targets Rammed . | . . . Kicked . | . . . Crushed . | . . . Highest Temperature 414 | . 72 414 Average Temperature 144 | . 31 199 Received Heat Transfer 201 | . 78 123 Effects 4 | . . 4 Shutdowns 1 | . . 1 Energy Bleed 2 | . . 2 Short Circuit 1 | . . 1 Siege Activations . | . . . Robots Corrupted . | . . . Combat Hostiles . | . . . Parts Fried . | . . . Impact Corruptions . | . . . Robots Melted . | . . . Combat Hostiles . | . . . Parts Melted . | . . . Heat Transferred 955 | . 400 555 Parts Sabotaged . | . . . Parts Stolen . | . . . Parts Stripped . | . . . Power Chain Reactions . | . . . Missiles Intercepted . | . . . Alert | -11 -10 -10 ------- Run | Jun Mat Min Peak Influence 285 | . 119 285 Initial 30 | . . 30 Average 128 | . 46 215 Maximum Alert Level 1 | . . 1 Low Security (%) 66 | . 100 29 Level 1 33 | . . 70 Level 2 . | . . . Level 3 . | . . . Level 4 . | . . . Level 5 . | . . . High Security . | . . . Max Security . | . . . Squads Dispatched 2 | . 2 . Investigation 1 | . 1 . Extermination . | . . . Reinforcement 1 | . 1 . Assault . | . . . Garrison . | . . . Intercept . | . . . Searches Triggered . | . . . Construction Impeded . | . . . Haulers Reinforced . | . . . Active Scanning Responses . | . . . Cargo Convoy Interrupts . | . . . Stealth | -11 -10 -10 --------- Run | Jun Mat Min Distress Signals 1 | . 1 . Communications Jammed . | . . . Distress Signals . | . . . Times Spotted 24 | . 11 13 Peak Tracking Total 4 | . 4 3 Tactical Retreats 1 | . . 1 Traps | -11 -10 -10 ------- Run | Jun Mat Min Traps Triggered . | . . . Indirectly . | . . . Trap Hack Attempts . | . . . Triggered . | . . . Disarmed . | . . . Reprogrammed . | . . . Reused . | . . . Traps Extracted . | . . . Installed . | . . . Triggered . | . . . Machines | -11 -10 -10 ---------- Run | Jun Mat Min Machines Disabled 1 | . 1 . Max in Single Turn 1 | . 1 . Machines Repaired . | . . . Machines Sabotaged . | . . . Overloaded Fab Kills . | . . . Hacking | -11 -10 -10 --------- Run | Jun Mat Min Machines Accessed 5 | . 5 . Terminals 4 | . 4 . Fabricators . | . . . Repair Stations . | . . . Recycling Units 1 | . 1 . Scanalyzers . | . . . Garrison Access . | . . . Total Hacks 10 | . 10 . Successful 4 | . 4 . Failed 5 | . 5 . Catastrophic 1 | . 1 . Database Lockouts 1 | . 1 . Manual 11 | . 11 . Terminals 9 | . 9 . Fabricators . | . . . Repair Stations . | . . . Recycling Units 1 | . 1 . Scanalyzers . | . . . Garrison Access . | . . . Terminal Hacks 3 | . 3 . Robot Analysis 1 | . 1 . Prototype ID Bank 1 | . 1 . Branch Access Points 1 | . 1 . Fabricator Hacks . | . . . Repair Station Hacks . | . . . Recycling Unit Hacks 1 | . 1 . Retrieve Components 1 | . 1 . Scanalyzer . | . . . Garrison Access Hacks . | . . . Unauthorized Hacks . | . . . Terminals . | . . . Fabricators . | . . . Repair Stations . | . . . Recycling Units . | . . . Scanalyzers . | . . . Garrison Access . | . . . Data Cores Recovered 1 | . 1 . Used 1 | . 1 . Hacking Detections 4 | . 4 . Full Trace Events 2 | . 2 . Feedback Events . | . . . Feedback Blocked . | . . . Robot Schematics Acquired . | . . . Robots Built . | . . . Authchips . | . . . Time . | . . . Total Robot Build Rating . | . . . Part Schematics Acquired . | . . . Parts Built . | . . . Authchips . | . . . Time . | . . . Total Part Build Rating . | . . . Parts Repaired . | . . . Time . | . . . Parts Recycled . | . . . Recycled Matter . | . . . Retrieved Matter . | . . . Retrieved Components 8 | . 8 . Parts Scanalyzed . | . . . Part Schematics Acquired . | . . . Parts Damaged . | . . . Bothacking | -11 -10 -10 ------------ Run | Jun Mat Min Used RIF Installer . | . . . Robots Hacked . | . . . Non-combat . | . . . Combat . | . . . Robot Hacks Applied . | . . . Relay Couplers Released . | . . . Fabnet Peak Effective % . | . . . Robots Rewired . | . . . Allies Hacked . | . . . Hacks Repelled . | . . . Allies | -11 -10 -10 -------- Run | Jun Mat Min Total Allies 2 | . . 2 Largest Group 2 | . . 2 Highest-Rated Group 50 | . . 50 Highest-Rated Ally 31 | . . 31 Total Orders . | . . . Ally Attacks 2 | . . 2 Total Damage 40 | . . 40 Kills . | . . . Allies Corrupted . | . . . Allies Melted . | . . . Intel | -11 -10 -10 ------- Run | Jun Mat Min Robot Analysis Total 1 | . 1 . Derelict Logs Recovered . | . . . Drone Launches . | . . . Drone Recoveries . | . . . Exploration | -11 -10 -10 ------------- Run | Jun Mat Min Turns Passed 1031 | . 533 498 Spaces Moved 523 | 1 300 222 Core . | . . . Treads 46 | . . 46 Legs 72 | 1 71 . Wheels 405 | . 229 176 Hover . | . . . Flight . | . . . Fastest Speed 115 | 120 115 115 Average Speed 136 | 120 135 136 Slowest Speed 240 | 120 190 240 Overloaded Moves . | . . . Propulsion Burnouts . | . . . Robots Hopped . | . . . Cave-ins Triggered 1 | . . 1 Exploration Rate (%) 29 | 2 45 40 Regions Visited 2 Branch Regions 1 Pre-discovered Areas . | . . . Known Exits Taken 1 | . 1 . Unknown Exits Taken 1 | 1 . . Scrap Searched 1 | . . 1 Spaces Dug . | . . . Terrain Destroyed 115 | . 20 95 Melee . | . . . Projectile 2 | . . 2 AOE 113 | . 20 93 Terrain Rammed . | . . . Walls Destroyed . | . . . Machines Disabled . | . . . Actions | -11 -10 -10 --------- Run | Jun Mat Min Total 739 | . 355 384 Wait 120 | . . 120 Move 521 | . 299 222 Hop . | . . . Pick Up 12 | . 10 2 Fast Attach 3 | . 2 1 Attach 8 | . 1 7 Detach 1 | . 1 . Swap 5 | . 3 2 Drop 3 | . 3 . Fire 66 | . 36 30 Melee . | . . . Ram . | . . . Kick . | . . . Crush . | . . . Escape Stasis . | . . . Rewire . | . . . Trap . | . . . Miscellaneous . | . . . Route ------- -11/Junkyard -10/Materials (discovered 3 exits: [*Mat] / *Min x2) -10/Mines History --------- Turn | Location | Event 1 | -11/Junkyard | Discovered new exit (range 0) 1 | -11/Junkyard | Entered Materials 262 | -10/Materials | Discovered new exit (range 9) 315 | -10/Materials | Build established: Mutant 354 | -10/Materials | Central database locked down 469 | -10/Materials | Discovered new exit (range 14) 515 | -10/Materials | Identified exit to Mines 534 | -10/Materials | Entered Mines 739 | -10/Mines | Excavation squad dispatched 739 | -10/Mines | A large section of the Mines collapsed 883 | -10/Mines | Crushed by falling debris 898 | -10/Mines | Core integrity fell below 50% 922 | -10/Mines | Lost 4 parts (1n1u2w) 989 | -10/Mines | Excavation squad dispatched 1006 | -10/Mines | Core integrity fell below 20% 1032 | -10/Mines | Destroyed by G-34 Mercenary with Small Laser Last Messages --------------- 00989_ ALERT: Derelict activity in mines confirmed. Dispatching additional escorted excavation squad. 00989_ Shotgun broken. 00989_ Overheating: Short circuit. 00989_ T-07 Excavator is excavating. 00991_ Overheating: Energy bleed (-13). 00991_ T-07 Excavator is excavating. 00993_ G-34 Mercenary destroyed. 00993_ T-07 Excavator is excavating. 00997_ Acquired Lgt. Treads. 00998_ T-07 Excavator is excavating. 00999_ Power failure, Lgt. Ion Engine shutdown. 00999_ The unstable cave ceiling collapses. 01000_ T-07 Excavator is excavating. 01001_ Overheating: Energy bleed (-12). 01001_ T-07 Excavator destroyed. 01002_ Acquired 30 matter. 01002_ T-07 Excavator is excavating. 01021_ System corrupted: Component data lost. 01031_ G-34 Mercenary suffers critical hit (Burn). Map ----- +----------------------------------------------------+ | | | | | | | | | | | | | | | | | | | | | ?????????????????????????????????????????????????? | | ?????????????????????????????????????????????????? | | ???#################?????????????????????????????? | | ???#################?????????????????????????????? | | ???## ##?????????????????????????????? | | ???## ##???????????###########???????? | | ???## """ """ """ ##??????????################???? | | ???## ?"" """ """ ##??????????### ### #########? | | ????????" """ """ ##??????????## # ## ##? | | ???## """ """ """ ##??????????## [# # # ###### | | ???## ##??????????## ## #### | | ???## """ """ """ ##??????????### % ## | | ????????? """ """ ##??????????## # # ** " % " | | ??????????""" """ ############## # = *## | | ???## """ """ """ ################ [ ## | | ???## @ g ### #### #### | | ???## ############ ### ############## | | ???########################### ############?? | | ????################?????######### ##??#######??? | | ????????????????????????#### #### ##???######??? | | ??????????????????????##### ### ##???????????? | | ?????????????????????##### ### ##???????????? | | ?????????????????????### #### ##???????????? | | ???????????############ ##### ##???????????? | | ???????????############ ###### ##???????????? | | ???????????## ## ###### [##???????????? | | ????????????## ### ###### =##???????????? | | ????????????## ### ###### ] ##???????????? | | ????????????## ###### #########???????????? | | ????????????###### ### ## #########???????????? | | ????????????###### # ###??????????????????? | | ??????????????## = #####??????????????????? | | ??????????????##""" ####???????????????????? | | ??????????????##""" # ##?????????????????????? | | ??????????????##""" ##?????????????????????? | | ??????????????## ##?????????????????????? | | ??????????????## ####?????????????????????? | | ??????????????####### #####?????????????????????? | | ??????????????####### ###???????????????????????? | | ???????????????????## ##????????????????????????? | +----------------------------------------------------+ Best States ------------- Heat Dissipation 25 Energy Generation 10 Energy Capacity 250 Matter Stores 300 Matter Capacity 300 Sight Range 16 Terrain Scan Density 10 Evasion (%) 45 Recoil Reduction 2 Item Schematics ----------------- None Robot Schematics ------------------ None Fabricated ------------ Nothing Alien Tech Used ----------------- None Achievements -------------- None Challenges ------------ None Game ------ Seed PhaseEnhancedLog Manual? 0 Play Time 00:12:38 Cumulative 74.7 hours Start 2023.08.27 @ 20:31:53 End 2023.08.27 @ 20:56:12 Sessions 1 Manual Loads 0 Difficulty Rogue Special Mode None Game No. 68 Rogue 68 Adventurer 0 Explorer 0 Win Type - Total 1 Types 1/0/0/0/0/0/0/0/0 Lore% 41 Gallery% 34 Achievement% 37 Wizard Run 0 Options --------- ASCII 0 Keyboard 0 Movement Mouse Keybinds 0 Fullscreen 1 Font 16/SmallcapsGlow Map View 84x54 Tactical HUD 1 Map Filters NONE Filters NONE Steam 1 RUN: 5cfe022f-a59a-49b0-ad8c-69ccb688b119